bitfinex/quotes_SOLUSD_20220119
["timestamp","ask_amount","ask_price","bid_price","bid_amount"]
[1642609077078,2.945,135.87,135.76,1.69226289]
[1642609077278,0.25,135.86,135.76,1.69226289]
[1642609077680,5.366945,135.86,135.77,43.10942832]
[1642609077879,2.945,135.85,135.77,54.15552832]
[1642609078080,11.2968,135.86,135.77,54.15552832]
[1642609078281,14.2418,135.86,135.77,54.15552832]
[1642609078480,14.2418,135.86,135.75,22.9428]
[1642609078481,6.0,135.85,135.75,22.9428]
[1642609078681,3.195,135.84,135.73,3.75916644]
[1642609078881,3.195,135.84,135.73,2.06690355]
[1642609079081,17.049,135.83,135.73,11.049]
[1642609079380,9.10599127,135.82,135.72,40.27724194]
[1642609080479,11.0505,135.81,135.72,40.27724194]
[1642609080679,11.0505,135.81,135.72,41.96950483]
[1642609080881,6.0,135.8,135.72,41.96950483]
[1642609081182,11.0505,135.81,135.73,0.25]
[1642609082384,11.68914878,135.81,135.73,0.25]
[1642609082584,11.68914878,135.81,135.72,12.74246289]
[1642609082784,3.196,135.8,135.72,12.74246289]
[1642609084186,3.196,135.8,135.72,11.0502]
[1642609084386,3.196,135.8,135.73,47.68426265]
[1642609084586,0.25,135.8,135.73,47.68426265]
[1642609085388,11.3011,135.8,135.7,15.68956289]
[1642609085591,2.946,135.79,135.7,11.0513]
[1642609085788,0.25,135.78,135.68,2.06690355]
[1642609085989,2.947,135.77,135.66,34.04190355]
[1642609086189,0.25,135.76,135.67,0.25]
[1642609086392,11.3042,135.76,135.67,35.82712153]
[1642609087188,11.0542,135.76,135.67,35.82712153]
[1642609090091,0.74812409,135.75,135.65,62.4992]
[1642609090295,12.05322409,135.75,135.65,25.6572]
[1642609090593,2.947,135.74,135.65,25.6572]
[1642609090793,2.947,135.74,135.65,2.946]
[1642609090990,2.947,135.74,135.61,24.97280355]
[1642609090991,78.97,135.73,135.61,24.97280355]
[1642609091193,78.97,135.73,135.62,40.39028129]
[1642609091194,2.948,135.72,135.62,40.39028129]
[1642609091498,11.0587,135.71,135.62,39.89028129]
[1642609092092,11.0587,135.71,135.61,33.9646]
[1642609092292,11.0587,135.71,135.61,11.0587]
[1642609093295,2.948,135.7,135.59,11.0604]
[1642609093494,9.198,135.7,135.57,28.26510355]
[1642609093694,11.0631,135.67,135.57,28.26510355]
[1642609093893,11.0631,135.67,135.57,26.1982]
[1642609094392,11.0631,135.67,135.58,43.60617836]
[1642609094592,11.0631,135.67,135.58,43.85617836]
[1642609094791,11.0606,135.69,135.58,43.85617836]
[1642609094993,32.6102,135.7,135.58,43.85617836]
[1642609094994,26.3602,135.7,135.58,43.85617836]
[1642609095193,23.4122,135.7,135.58,43.85617836]
[1642609095398,23.4122,135.7,135.59,6.0]
[1642609095629,2.948,135.73,135.62,11.058]
[1642609095795,24.3136,135.74,135.63,47.01559975]
[1642609095995,6.0,135.73,135.63,47.26559975]
[1642609096799,6.0,135.75,135.66,48.78465736]
[1642609097205,0.25,135.74,135.66,48.78465736]
[1642609097606,0.25,135.74,135.63,0.25]
[1642609097801,3.198,135.74,135.64,11.0563]
[1642609098001,3.198,135.74,135.62,0.25]
[1642609098002,6.0,135.73,135.62,0.25]
[1642609098403,11.0582,135.72,135.62,0.25]
[1642609098603,11.0582,135.72,135.62,44.55555839]
[1642609099405,11.0582,135.72,135.62,55.61345839]
[1642609099603,6.0,135.73,135.62,128.33345839]
[1642609100206,6.0,135.73,135.62,137.17345839]
[1642609100805,6.0,135.73,135.63,2.948]
[1642609101008,37.2391,135.75,135.65,11.0554]
[1642609101009,6.0,135.74,135.65,11.0554]
[1642609101207,6.0,135.74,135.66,47.45661332]
[1642609102007,6.0,135.74,135.66,58.51171332]
[1642609102606,6.0,135.76,135.66,11.0551]
[1642609102808,6.25,135.76,135.63,26.5231]
[1642609103007,2.947,135.75,135.64,0.25]
[1642609103208,0.25,135.74,135.64,11.0563]
[1642609103407,2.947,135.73,135.64,11.0563]
[1642609103608,2.947,135.75,135.65,37.2665598]
[1642609103809,2.947,135.75,135.64,11.0563]
[1642609104010,6.0,135.74,135.64,11.0563]
[1642609104211,17.306,135.74,135.64,11.0563]
[1642609104811,0.97848031,135.73,135.63,45.11921614]
[1642609105009,3.92648031,135.73,135.63,42.17221614]
[1642609105210,11.058,135.72,135.63,42.17221614]
[1642609106010,11.058,135.72,135.62,22.5479]
[1642609106211,0.25,135.71,135.62,22.5479]
[1642609106411,14.0071,135.7,135.62,22.5479]
[1642609106913,6.7582685,135.68,135.6,24.8853]
[1642609107312,17.8191685,135.68,135.6,24.8853]
[1642609107512,2.948,135.67,135.57,2.06690355]
[1642609107712,3.198,135.67,135.57,2.06690355]
[1642609107913,5.02512602,135.67,135.57,2.06690355]
[1642609108116,77.74512602,135.67,135.57,2.06690355]
[1642609108313,88.80682602,135.67,135.57,2.06690355]
[1642609108514,0.40368984,135.65,135.57,2.06690355]
[1642609108714,2.949,135.64,135.57,2.06690355]
[1642609108915,3.60268984,135.65,135.57,2.06690355]
[1642609109114,6.0,135.64,135.57,2.06690355]
[1642609109314,17.0654,135.64,135.57,2.06690355]
[1642609110315,3.199,135.63,135.57,2.06690355]
[1642609110517,17.8250685,135.62,135.57,2.06690355]
[1642609110738,11.0668,135.62,135.57,2.06690355]
[1642609110937,3.199,135.63,135.57,2.06690355]
[1642609110938,2.949,135.63,135.57,2.06690355]
[1642609111138,6.0,135.64,135.57,2.06690355]
[1642609111539,6.0,135.64,135.57,13.12950355]
[1642609111741,6.0,135.64,135.58,48.61459175]
[1642609111939,9.51870648,135.68,135.58,48.61459175]
[1642609112739,9.51870648,135.68,135.58,48.36459175]
[1642609113140,9.51870648,135.68,135.58,59.42619175]
[1642609113541,2.949,135.68,135.59,72.97]
[1642609113740,2.949,135.69,135.59,0.25]
[1642609113942,50.4131,135.71,135.59,11.3222532]
[1642609114141,47.4651,135.71,135.59,11.3222532]
[1642609114443,0.25,135.7,135.59,11.3222532]
[1642609114840,0.25,135.7,135.61,11.0592]
[1642609115643,0.25,135.7,135.62,39.55779777]
[1642609115842,0.25,135.7,135.62,50.61569777]
[1642609116443,47.4651,135.71,135.62,50.61569777]
[1642609116643,2.948,135.74,135.63,0.25]
[1642609116844,2.948,135.75,135.63,0.25]
[1642609117145,2.948,135.75,135.66,46.34982281]
[1642609117343,48.771,135.76,135.66,46.34982281]
[1642609118549,6.0,135.75,135.67,11.3041]
[1642609119149,6.0,135.75,135.67,11.0541]
[1642609119349,8.13214924,135.75,135.67,11.0541]
[1642609119550,0.25,135.74,135.64,52.2038]
[1642609119755,3.197,135.74,135.6,112.6248]
[1642609119952,3.197,135.74,135.61,33.0595]
[1642609120251,6.0,135.73,135.61,33.0595]
[1642609120451,7.9778091,135.72,135.62,42.74579819]
[1642609120651,19.2859091,135.72,135.63,11.0572]
[1642609120851,11.3081,135.72,135.63,11.0572]
[1642609121052,11.0581,135.72,135.64,0.25]
[1642609121653,11.0581,135.72,135.63,11.0572]
[1642609121852,17.6513711,135.72,135.63,11.0572]
[1642609122553,11.0581,135.72,135.63,11.0572]
[1642609122754,6.0,135.73,135.63,12.7494532]
[1642609123754,0.86837094,135.72,135.64,0.25]
[1642609123961,1.11837094,135.72,135.62,2.948]
[1642609124156,1.11837094,135.72,135.61,24.2195]
[1642609124157,4.06637094,135.72,135.61,24.2195]
[1642609124959,4.06637094,135.72,135.62,45.88805158]
[1642609125164,2.948,135.72,135.63,11.0571]
[1642609125356,6.0,135.73,135.63,11.0571]
[1642609125855,0.25,135.72,135.63,11.0571]
[1642609126058,0.25,135.72,135.62,48.83605158]
[1642609126059,9.71887549,135.71,135.62,48.83605158]
[1642609126257,9.71887549,135.71,135.62,2.948]
[1642609126457,17.3091,135.7,135.62,2.948]
[1642609126659,2.948,135.69,135.62,2.948]
[1642609127658,2.948,135.72,135.63,0.25]
[1642609127859,48.0559,135.76,135.63,0.25]
[1642609128058,6.0,135.75,135.64,1.6922532]
[1642609128259,6.0,135.75,135.65,0.25]
[1642609128459,6.0,135.75,135.65,47.41923689]
[1642609128659,6.0,135.75,135.66,11.0552]
[1642609129061,6.0,135.75,135.67,0.25]
[1642609129261,6.0,135.75,135.65,48.86149009]
[1642609129463,2.947,135.74,135.65,48.86149009]
[1642609129660,5.09351851,135.74,135.65,48.86149009]
[1642609129860,6.0,135.73,135.65,48.86149009]
[1642609130063,6.0,135.73,135.65,47.16923689]
[1642609130462,6.0,135.73,135.65,58.22483689]
[1642609131765,6.0,135.74,135.65,58.22483689]
[1642609132164,6.0,135.75,135.65,58.22483689]
[1642609132365,9.197,135.75,135.65,130.94483689]
[1642609132567,6.25,135.75,135.66,0.25]
[1642609132866,6.25,135.75,135.67,11.0543]
[1642609133066,6.0,135.75,135.67,11.0543]
[1642609133268,6.0,135.75,135.68,48.95835459]
[1642609133664,6.0,135.75,135.67,11.0543]
[1642609134768,6.0,135.75,135.68,0.25]
[1642609134965,14.0002,135.78,135.68,11.3032]
[1642609135168,11.0532,135.78,135.68,11.3032]
[1642609135365,2.947,135.79,135.68,18.7564532]
[1642609135668,2.946,135.83,135.68,27.8564532]
[1642609135865,86.50616612,135.84,135.69,99.34992387]
[1642609136066,90.62514233,135.84,135.73,11.0481]
[1642609136266,90.62514233,135.84,135.74,0.25]
[1642609136892,67.01674233,135.84,135.73,5.945]
[1642609137068,6.15640038,135.83,135.73,5.945]
[1642609137270,2.945,135.82,135.74,11.0481]
[1642609138569,20.15020038,135.83,135.74,11.0481]
[1642609138969,20.15020038,135.83,135.75,0.25]
[1642609139171,17.20520038,135.83,135.74,11.0481]
[1642609139370,13.9938,135.83,135.75,35.15186845]
[1642609139972,13.9938,135.83,135.74,11.0481]
[1642609140174,0.25,135.82,135.74,11.0481]
[1642609140373,14.2447,135.82,135.72,108.5591]
[1642609140774,11.2997,135.82,135.73,0.25]
[1642609140973,5.82262781,135.81,135.72,11.0492]
[1642609141173,0.25,135.8,135.7,2.946]
[1642609141378,11.0536,135.77,135.7,2.946]
[1642609141975,12.39293053,135.77,135.7,2.946]
[1642609142174,11.0536,135.77,135.7,2.946]
[1642609143074,13.9981,135.79,135.7,2.946]
[1642609143277,2.946,135.79,135.71,0.25]
[1642609143483,6.0,135.8,135.71,7.674]
[1642609143675,28.07234233,135.84,135.72,4.6382532]
[1642609144075,28.07234233,135.84,135.73,0.25]
[1642609144275,19.63444319,135.83,135.73,54.06152219]
[1642609144709,0.25,135.82,135.73,54.06152219]
[1642609145313,0.25,135.82,135.73,11.2986]
[1642609145514,11.2996,135.82,135.71,63.6888]
[1642609145711,2.946,135.81,135.71,63.6888]
[1642609145912,8.946,135.81,135.71,52.6386]
[1642609146113,6.25,135.8,135.71,2.945]
[1642609146313,1.52161515,135.78,135.71,2.945]
[1642609146712,2.946,135.79,135.71,2.945]
[1642609146912,0.25,135.78,135.7,7.607]
[1642609147112,0.25,135.8,135.7,7.607]
[1642609147313,2.946,135.79,135.7,7.607]
[1642609147513,2.946,135.79,135.71,0.25]
[1642609147713,2.946,135.81,135.73,11.0485]
[1642609147914,2.946,135.81,135.73,18.7825]
[1642609149012,2.946,135.82,135.73,18.7825]
[1642609149214,2.945,135.83,135.73,18.7825]
[1642609149813,2.945,135.83,135.74,0.25]
[1642609150014,45.40038047,135.84,135.74,0.25]
[1642609150215,6.0,135.83,135.73,11.0485]
[1642609150420,8.945,135.83,135.73,11.0485]
[1642609150817,8.945,135.83,135.71,33.5721]
[1642609151016,2.07712602,135.82,135.71,22.5227]
[1642609151217,2.946,135.81,135.71,22.5227]
[1642609151418,10.77312602,135.81,135.71,22.5227]
[1642609151616,1.1317202,135.8,135.68,2.945]
[1642609151821,2.946,135.79,135.7,57.56669292]
[1642609152418,24.9085,135.81,135.7,57.56669292]
[1642609153318,31.48942011,135.81,135.7,57.56669292]
[1642609153618,2.946,135.8,135.7,57.56669292]
[1642609153819,3.196,135.8,135.7,57.56669292]
[1642609154020,2.946,135.8,135.7,57.56669292]
[1642609154518,2.946,135.8,135.7,59.25822421]
[1642609154719,2.946,135.8,135.71,0.25]
[1642609155019,5.67819892,135.82,135.73,60.50363763]
[1642609156118,5.67819892,135.82,135.73,11.0483]
[1642609156319,8.62419892,135.82,135.73,11.0483]
[1642609157121,2.946,135.82,135.74,42.57148353]
[1642609158226,8.10793036,135.82,135.73,11.0483]
[1642609158426,5.16193036,135.82,135.73,11.0483]
[1642609158625,5.16193036,135.82,135.71,99.8443]
[1642609158828,0.25,135.81,135.71,2.946]
[1642609159027,5.02312602,135.81,135.67,184.05883129]
[1642609159236,35.19222602,135.81,135.69,41.60859024]
[1642609159727,33.3651,135.81,135.69,41.60859024]
[1642609160531,33.3651,135.81,135.69,52.65959024]
[1642609160732,33.3651,135.81,135.69,125.37959024]
[1642609160733,30.4191,135.81,135.69,125.37959024]
[1642609161430,30.4191,135.81,135.7,0.25]
[1642609161629,24.4191,135.81,135.7,0.25]
[1642609161829,24.4191,135.81,135.72,42.21043435]
[1642609164669,25.97512093,135.81,135.72,42.21043435]
[1642609165472,35.4693,135.81,135.72,42.21043435]
[1642609165677,38.4153,135.81,135.72,42.21043435]
[1642609166269,27.1151,135.81,135.73,0.25]
[1642609166474,31.01834233,135.84,135.73,0.25]
[1642609166669,28.07234233,135.84,135.73,72.97]
[1642609166908,28.07234233,135.84,135.74,1.69153129]
[1642609167075,3.95154233,135.84,135.75,38.19692379]
[1642609167270,3.95154233,135.84,135.75,38.44692379]
[1642609167471,3.95154233,135.84,135.75,111.16692379]
[1642609167770,3.95154233,135.84,135.75,38.19692379]
[1642609168174,2.945,135.83,135.75,38.19692379]
[1642609168372,3.95154233,135.84,135.75,38.19692379]
[1642609168771,3.95154233,135.84,135.75,49.24362379]
[1642609169574,3.95154233,135.84,135.76,0.25]
[1642609169774,3.95154233,135.84,135.77,11.0449]
[1642609169973,3.95154233,135.84,135.75,38.19692379]
[1642609170175,9.95750465,135.84,135.75,38.19692379]
[1642609170575,9.95750465,135.84,135.73,23.0818]
[1642609170772,9.95750465,135.84,135.74,0.25]
[1642609171173,3.95154233,135.84,135.74,0.25]
[1642609171574,3.95154233,135.84,135.75,11.0461]
[1642609171777,3.95154233,135.84,135.76,0.25]
[1642609171972,3.95154233,135.84,135.75,11.0461]
[1642609172175,5.44761095,135.83,135.75,11.0461]
[1642609172574,5.44761095,135.83,135.73,34.1297]
[1642609172774,2.945,135.82,135.73,23.0818]
[1642609172975,3.195,135.82,135.73,23.0818]
[1642609173175,2.945,135.82,135.73,23.0818]
[1642609173374,2.945,135.82,135.74,35.22111658]
[1642609173577,3.95154233,135.84,135.74,35.22111658]
[1642609174174,0.25,135.83,135.74,35.22111658]
[1642609174374,10.75241487,135.84,135.74,35.22111658]
[1642609174574,0.25,135.83,135.74,35.22111658]
[1642609174774,3.195,135.83,135.74,35.22111658]
[1642609175584,3.195,135.83,135.75,11.0466]
[1642609177479,0.25,135.83,135.75,11.0466]
[1642609178979,0.25,135.83,135.75,18.1436]
[1642609179578,3.95154233,135.84,135.75,18.1436]
[1642609179879,3.95154233,135.84,135.76,11.2961]
[1642609180083,3.95154233,135.84,135.77,36.62545145]
[1642609180880,3.95154233,135.84,135.76,11.2961]
[1642609182481,3.95154233,135.84,135.77,46.21940616]
[1642609182684,3.95154233,135.84,135.78,11.2939]
[1642609183286,3.95154233,135.84,135.78,14.2389]
[1642609183487,3.95154233,135.84,135.78,15.93043129]
[1642609183890,3.95154233,135.84,135.8,11.0405]
[1642609184087,3.95154233,135.84,135.82,34.94358862]
[1642609184290,3.95154233,135.84,135.83,6.31439994]
[1642609184688,6.16140335,135.87,135.83,6.31439994]
[1642609184889,6.16140335,135.87,135.84,11.0395]
[1642609185090,10.26900558,135.93,135.84,11.0395]
[1642609185290,10.26900558,135.93,135.85,3.193]
[1642609185491,10.26900558,135.93,135.86,43.22124224]
[1642609185792,10.26900558,135.93,135.87,0.25]
[1642609188500,10.26900558,135.93,135.87,11.2869]
[1642609188697,2.943,135.99,135.87,11.2869]
[1642609188698,2.943,135.99,135.88,69.0]
[1642609188899,27.35102557,136.01,135.92,0.31564402]
[1642609188900,16.49352557,136.01,135.92,0.31564402]
[1642609189100,24.6456134,136.06,135.95,141.72]
[1642609189298,24.6456134,136.06,136.01,3.83948413]
[1642609189519,24.6456134,136.06,136.02,36.75639889]
[1642609189718,24.6456134,136.06,136.03,8.84]
[1642609190016,24.6456134,136.06,136.04,6.06439994]
[1642609190219,24.6456134,136.06,136.01,3.83948413]
[1642609190716,2.94,136.05,136.01,3.83948413]
[1642609190916,24.6456134,136.06,136.01,3.83948413]
[1642609191115,18.09853051,136.05,136.01,3.83948413]
[1642609191720,24.6456134,136.06,136.01,3.83948413]
[1642609193322,24.6456134,136.06,136.02,0.25]
[1642609194119,24.6456134,136.06,136.01,12.67948413]
[1642609194519,0.25,136.05,136.01,3.83948413]
[1642609194719,2.94,136.04,136.01,3.83948413]
[1642609194921,6.06439994,136.03,135.95,8.84]
[1642609195321,21.42694113,136.03,135.97,11.0304]
[1642609195520,6.06439994,136.03,135.97,11.0304]
[1642609196521,6.06439994,136.03,135.97,50.9073023]
[1642609197724,6.06439994,136.03,135.97,11.0304]
[1642609198625,6.06439994,136.03,135.97,19.8704]
[1642609198823,6.06439994,136.03,135.97,8.84]
[1642609199025,9.00539994,136.03,135.97,8.84]
[1642609200226,0.25,136.02,135.94,8.84]
[1642609200425,0.25,136.02,135.91,98.6950115]
[1642609200426,2.941,136.01,135.91,48.5967]
[1642609200626,2.941,136.01,135.9,8.84]
[1642609200925,0.25,136.0,135.9,8.84]
[1642609201129,2.942,135.99,135.9,8.84]
[1642609201527,0.25,135.98,135.9,8.84]
[1642609202333,0.25,135.98,135.87,11.0381]
[1642609202527,2.942,135.97,135.87,9.09]
[1642609202727,0.25,135.96,135.83,11.782]
[1642609202929,2.943,135.95,135.83,8.84]
[1642609203129,2.59982968,135.94,135.83,47.90097003]
[1642609203329,2.943,135.93,135.83,8.84]
[1642609203529,2.943,135.93,135.83,19.8815]
[1642609203729,0.25,135.92,135.83,19.8815]
[1642609203933,2.943,135.91,135.83,19.8815]
[1642609204328,19.03267657,135.9,135.83,19.8815]
[1642609204528,2.943,135.94,135.83,19.8815]
[1642609204731,2.943,135.94,135.84,0.25]
[1642609204928,22.8151,135.95,135.84,14.2335]
[1642609205129,22.8151,135.95,135.84,15.92503091]
[1642609205532,22.8151,135.95,135.85,53.77529073]
[1642609205728,22.8151,135.95,135.86,0.25]
[1642609205929,22.8151,135.95,135.87,11.0383]
[1642609206132,2.943,136.01,135.87,13.9813]
[1642609206329,26.578,136.01,135.88,15.09]
[1642609206529,6.0,135.98,135.88,16.78153091]
[1642609206931,6.0,135.98,135.89,45.16948608]
[1642609207232,0.25,135.97,135.89,45.16948608]
[1642609207430,0.25,135.97,135.88,6.25]
[1642609207630,0.25,135.97,135.86,1.69153091]
[1642609207833,0.25,135.97,135.84,11.782]
[1642609207834,2.943,135.96,135.84,11.782]
[1642609208031,75.663,135.96,135.85,0.25]
[1642609208330,0.25,135.95,135.84,8.84]
[1642609208530,2.943,135.94,135.84,8.84]
[1642609208731,0.25,135.93,135.84,19.8805]
[1642609209530,2.943,135.94,135.84,19.8805]
[1642609209730,72.72,135.94,135.85,11.2904]
[1642609210130,12.17812953,135.95,135.86,35.59209127]
[1642609210332,12.17812953,135.95,135.85,11.2904]
[1642609210532,1.13732953,135.95,135.85,11.2904]
[1642609210730,0.25,135.94,135.85,11.2904]
[1642609210933,0.25,135.94,135.82,38.49153091]
[1642609211132,2.943,135.93,135.82,1.69153091]
[1642609211430,2.943,135.93,135.83,36.99647853]
[1642609211632,0.25,135.92,135.83,36.99647853]
[1642609211933,8.943,135.94,135.83,36.99647853]
[1642609212135,2.943,135.95,135.84,16.53153091]
[1642609212434,2.943,135.98,135.84,16.78153091]
[1642609212633,2.943,135.98,135.85,25.93603091]
[1642609212832,6.25,135.97,135.85,34.77603091]
[1642609213032,4.76949607,135.96,135.86,41.56118197]
[1642609213232,2.943,135.96,135.86,41.56118197]
[1642609213432,2.943,135.96,135.87,11.0388]
[1642609213632,9.193,135.97,135.87,19.8788]
[1642609213833,6.25,135.97,135.88,0.25]
[1642609214033,6.25,135.97,135.88,15.09]
[1642609214234,0.25,135.97,135.89,34.80345048]
[1642609214635,0.25,135.97,135.9,0.25]
[1642609215039,2.942,136.0,135.9,11.285]
[1642609215235,24.8638,136.02,135.9,26.125]
[1642609215435,24.8638,136.02,135.9,27.81653091]
[1642609216837,2.942,136.03,135.9,43.29518789]
[1642609217036,26.09365573,136.06,135.91,86.0450115]
[1642609217236,26.09365573,136.06,135.95,11.0282]
[1642609217437,26.09365573,136.06,135.95,27.5002]
[1642609217638,26.09365573,136.06,135.97,43.24327771]
[1642609218037,26.09365573,136.06,135.98,0.25]
[1642609219537,26.09365573,136.06,135.99,11.0288]
[1642609219940,26.09365573,136.06,136.0,0.25]
[1642609220442,26.09365573,136.06,136.0,11.278]
[1642609220641,26.09365573,136.06,136.0,11.028]
[1642609221240,26.09365573,136.06,135.98,2.94]
[1642609221241,6.81389013,136.05,135.98,2.94]
[1642609221540,3.19,136.05,135.98,2.94]
[1642609221740,2.94,136.05,135.96,11.031]
[1642609222243,26.09365573,136.06,135.97,14.84]
[1642609222743,24.6456134,136.06,135.98,45.96933659]
[1642609222942,24.6456134,136.06,135.99,8.84]
[1642609223141,24.6456134,136.06,135.99,27.55873091]
[1642609223340,24.6456134,136.06,136.0,0.25]
[1642609223540,24.6456134,136.06,136.01,8.84]
[1642609223741,24.6456134,136.06,136.02,0.25]
[1642609224040,24.6456134,136.06,136.02,50.58266125]
[1642609224242,24.6456134,136.06,136.03,11.0236]
[1642609224642,24.6456134,136.06,136.04,0.25]
[1642609225246,24.6456134,136.06,136.05,11.0228]
[1642609225444,24.6456134,136.06,136.02,8.84]
[1642609225644,24.6456134,136.06,136.03,0.25]
[1642609226545,6.06439994,136.05,136.03,11.2754]
[1642609226745,6.06439994,136.05,136.03,11.0254]
[1642609226946,24.6456134,136.06,136.03,11.0254]
[1642609227147,24.6456134,136.06,136.04,0.25]
[1642609227949,24.6456134,136.06,136.04,11.2748]
[1642609228150,24.6456134,136.06,136.04,52.11378796]
[1642609228750,24.6456134,136.06,136.04,11.2748]
[1642609228951,24.6456134,136.06,136.04,11.0248]
[1642609229152,24.6456134,136.06,136.02,11.026]
[1642609230359,24.6456134,136.06,136.04,11.0243]
[1642609230778,24.6456134,136.06,136.05,0.25]
[1642609230980,24.6456134,136.06,136.05,44.21216555]
[1642609232081,12.6594134,136.06,136.05,44.21216555]
[1642609233383,12.6594134,136.06,136.05,47.15116555]
[1642609233983,12.6594134,136.06,136.05,44.21216555]
[1642609234383,41.07602234,136.14,136.06,72.72]
[1642609234584,41.07602234,136.14,136.08,11.0189]
[1642609234786,41.07602234,136.14,136.09,0.25]
[1642609234985,41.07602234,136.14,136.09,35.99858263]
[1642609235586,41.07602234,136.14,136.09,145.44538263]
[1642609236383,0.49205972,136.13,136.09,145.44538263]
[1642609236584,0.49205972,136.13,136.1,17.0187]
[1642609236784,0.49205972,136.13,136.11,9.09]
[1642609236984,0.49205972,136.13,136.12,6.0]
[1642609237282,0.49205972,136.13,136.12,6.25]
[1642609237483,0.49205972,136.13,136.12,45.05714075]
[1642609237883,0.49205972,136.13,136.12,0.25]
[1642609238284,0.49205972,136.13,136.12,11.2668]
[1642609238491,0.49205972,136.13,136.12,11.0168]
[1642609238986,0.49205972,136.13,136.12,11.2668]
[1642609241485,41.07602234,136.14,136.12,11.2668]
[1642609241784,41.07602234,136.14,136.13,0.25]
[1642609242183,61.6140335,136.17,136.13,0.25]
[1642609242385,61.6140335,136.17,136.14,11.0162]
[1642609242588,6.06439994,136.16,136.14,11.0162]
[1642609242786,3.03219997,136.16,136.14,11.0162]
[1642609243386,3.03219997,136.16,136.11,8.84]
[1642609243586,3.03219997,136.16,136.12,11.0179]
[1642609244387,10.67572369,136.16,136.12,11.0179]
[1642609244788,61.6140335,136.17,136.12,11.0179]
[1642609245191,61.6140335,136.17,136.13,0.25]
[1642609245690,90.60626431,136.17,136.13,0.25]
[1642609246390,90.60626431,136.17,136.12,11.0179]
[1642609246391,2.936,136.16,136.09,8.84]
[1642609246588,3.186,136.16,136.09,8.84]
[1642609246988,3.186,136.16,136.07,46.05949181]
[1642609247190,2.936,136.16,136.07,46.05949181]
[1642609247590,2.936,136.16,136.08,92.5812]
[1642609247788,61.6140335,136.17,136.08,100.52273091]
[1642609247992,61.6140335,136.17,136.08,113.84774241]
[1642609248192,61.6140335,136.17,136.09,4.62953091]
[1642609248389,61.6140335,136.17,136.1,8.84]
[1642609248590,61.6140335,136.17,136.1,53.61571363]
[1642609248792,67.12316973,136.17,136.11,11.0164]
[1642609249893,67.12316973,136.17,136.12,11.2682]
[1642609249894,61.6140335,136.17,136.12,11.2682]
[1642609250895,61.6140335,136.17,136.14,11.016]
[1642609251595,6.06439994,136.16,136.14,11.016]
[1642609255902,6.06439994,136.16,136.15,0.25]
[1642609255903,3.03219997,136.16,136.15,0.25]
[1642609256305,61.6140335,136.17,136.15,0.25]
[1642609256505,61.6140335,136.17,136.16,11.0149]
[1642609257133,61.6140335,136.17,136.12,36.719]
[1642609258436,61.6140335,136.17,136.14,11.0162]
[1642609259538,3.03219997,136.16,136.14,11.0162]
[1642609259836,3.03219997,136.15,136.14,11.0162]
[1642609260637,3.03219997,136.15,136.12,11.018]
[1642609260839,3.03219997,136.14,136.08,8.84]
[1642609261035,3.03219997,136.14,136.06,8.84]
[1642609261437,3.03219997,136.14,136.06,11.779]
[1642609261642,10.74119997,136.14,136.06,8.84]
[1642609261837,3.189,136.13,136.06,19.8626]
[1642609262038,2.939,136.13,136.06,19.8626]
[1642609262335,2.939,136.14,136.06,19.8626]
[1642609262536,2.938,136.16,136.06,19.8626]
[1642609262739,14.2103,136.16,136.06,19.8626]
[1642609263136,47.4913497,136.16,136.07,57.29898121]
[1642609263538,47.4913497,136.16,136.07,11.022]